Cogmind - Beta 9.3 @@@ ROGUE MODE // 2020.01.03 @ 02:13:08 Player: Zan Result: Destroyed by S-10 Pest with Light Assault Rifle Performance ------------- Evolutions (2) 1000 Regions Visited (4) 800 Robots Destroyed (10) 50 Value Destroyed (209) 209 Prototype IDs (4) 80 Alien Tech Used (0) 0 Bonus (0) 0 TOTAL SCORE: 2139 Bonus ------- None Cogmind --------- Core Integrity 0/550 Matter 176/300 Energy 100/100 System Corruption 0% Temperature Cool (0) Movement Core (50) Location -8/Storage Parts ------- > --- POWER (2) -------- (None) > --- PROPULSION (3) --- (None) > --- UTILITY (4) ------ (None) > --- WEAPON (2) ------- (None) > --- INVENTORY (4) ---- (None) Peak State ------------ > --- POWER ------------ (None) > --- PROPULSION ------- (None) > --- UTILITY ---------- Drone Bay Drone Bay Drone Bay Drone Bay > --- WEAPON ----------- (None) > --- INVENTORY -------- (None) [Rating: 20] Favorites ----------- Power Ion Engine Engine Ion Engine Propulsion VTOL Module Leg Aluminum Leg Flight Unit VTOL Module Utility ECM Suite Device ECM Suite Processor Melee Analysis Suite Protection Hardened Light Armor Plating Weapon Grenade Launcher Energy Gun EM Pulse Gun Energy Cannon Beam Cannon Ballistic Gun Light Assault Rifle Launcher Grenade Launcher Special Weapon Plasma Cutter Build | -11 -10 -9 -8 -8 ------- Run | Scr Mat Mat Mat Sto Slots Evolved 4 | . . 2 2 . Power 1 | . . . 1 . Propulsion 1 | . . 1 . . Utility 2 | . . 1 1 . Weapon . | . . . . . Parts Attached 31 | 6 8 7 4 6 Power 3 | 1 2 . . . Engine 3 | 1 2 . . . Core . | . . . . . Reactor . | . . . . . Propulsion 10 | 2 2 5 1 . Treads . | . . . . . Leg 4 | 2 2 . . . Wheel . | . . . . . Hover . | . . . . . Flight 6 | . . 5 1 . Utility 11 | 1 1 1 2 6 Device 9 | 1 1 . 1 6 Storage . | . . . . . Processor 1 | . . . 1 . Hackware . | . . . . . Protection 1 | . . 1 . . Artifact . | . . . . . Weapon 7 | 2 3 1 1 . Energy Gun 1 | 1 . . . . Energy Cannon 1 | . 1 . . . Ballistic Gun 3 | 1 1 . 1 . Ballistic Cannon . | . . . . . Launcher 1 | . 1 . . . Special Weapon 1 | . . 1 . . Impact Weapon . | . . . . . Slashing Weapon . | . . . . . Piercing Weapon . | . . . . . Special Melee Weapon . | . . . . . Unidentified Prototypes . | . . . . . Parts Lost 25 | . 3 8 6 8 Power 1 | . . 1 . . Propulsion 7 | . 1 2 3 1 Utility 11 | . . 3 1 7 Weapon 6 | . 2 2 2 . Highest Loss Streak 6 | . 2 4 6 4 Average Slot Usage (%) 69 | . 92 79 49 31 Engine 7 | . 14 9 . . Leg 7 | . 27 . . . Flight 13 | . . 25 19 6 Device 20 | . 22 17 9 25 Protection 3 | . . 9 . . Energy Cannon 4 | . 1 9 . . Ballistic Gun 4 | . 14 . 7 . Launcher 5 | . 7 7 . . Naked Turns 29 | . . . . 29 Heaviest Build 24 | 7 13 18 5 24 Greatest Support 20 | 20 20 20 15 4 Greatest Overweight (x) 7 | . . 3 . 7 Average Overweight (x) . | . . . . 1 Largest Inventory Capacity 4 | 4 4 4 4 4 Average Capacity 4 | 4 4 4 4 4 Most Carried 4 | 4 4 4 3 4 Average Carried 2 | 1 2 2 . 1 Final Capacity 4 | 4 4 4 4 4 Final Carried 2 | 2 2 2 . . Class Distribution -------------------- 100% | Mutant Dominant Class ---------------- Mutant | -10/Materials Mutant | -9/Materials Mutant | -8/Materials Mutant | -8/Storage Resources | -11 -10 -9 -8 -8 ----------- Run | Scr Mat Mat Mat Sto Matter Collected 313 | 248 33 . 9 23 Remotely . | . . . . . Salvage Created 235 | 38 156 20 21 . Parts 27 | 4 8 9 6 . Haulers Intercepted . | . . . . . Recyclers Shooed . | . . . . . Parts Field Recycled . | . . . . . Retrieved Matter . | . . . . . Parts Self-Destructed . | . . . . . Prevented . | . . . . . Kills | -11 -10 -9 -8 -8 ------- Run | Scr Mat Mat Mat Sto Combat Hostiles Destroyed 10 | 1 3 4 2 . Guns 6 | 1 3 . 2 . Cannons 2 | . . 2 . . AOE 2 | . . 2 . . Classes Destroyed 2 | 1 . 1 . . Swarmer 6 | . . 4 2 . Grunt 4 | 1 3 . . . Best Kill Streak 4 | 1 2 4 2 . Combat Bots Only 4 | 1 2 4 2 . Max Kills in Single Turn 2 | 1 1 2 1 . Gunslinging . | . . . . . Exploded 1 | . . 1 . . Melee . | . . . . . Uniques/NPCs Destroyed . | . . . . . Combat | -11 -10 -9 -8 -8 -------- Run | Scr Mat Mat Mat Sto Damage Taken 2750 | 21 397 748 409 1175 Core 882 | 10 58 261 160 393 Absorbed by Shields . | . . . . . Core Remaining (%) 67 | 96 72 34 . . Volleys Fired 22 | 2 14 2 4 . Largest 2 | 2 2 2 1 . Hottest 90 | 60 60 90 23 . Shots Fired 40 | 4 28 4 4 . Gun 36 | 4 28 . 4 . Cannon 2 | . . 2 . . Launcher 2 | . . 2 . . Special . | . . . . . Kinetic 25 | 2 19 . 4 . Thermal 2 | . . 2 . . Explosive 2 | . . 2 . . Electromagnetic 11 | 2 9 . . . Robot Hit Streak 12 | 3 12 . 7 . Robot Miss Streak 3 | . 1 2 3 . Penetration Max . | . . . . . Secondary Targets . | . . . . . Shots Hit Robots 31 | 3 24 . 4 . Core Hits 21 | 2 11 6 2 . Critical Hits . | . . . . . Critical Kills . | . . . . . Critical Parts Destroyed . | . . . . . Melee Attacks . | . . . . . Impact . | . . . . . Slashing . | . . . . . Piercing . | . . . . . Sneak Attacks . | . . . . . Combat Hostiles . | . . . . . Follow-up Attacks . | . . . . . Damage Inflicted 576 | 35 266 221 54 . Guns 307 | 35 218 . 54 . Cannons 36 | . . 36 . . Explosions 225 | . 48 177 . . Melee . | . . . . . Ramming 8 | . . 8 . . Kinetic 188 | 10 124 . 54 . Thermal 84 | . 48 36 . . Explosive 177 | . . 177 . . Electromagnetic 119 | 25 94 . . . Impact . | . . . . . Slashing . | . . . . . Piercing . | . . . . . Highest Corruption . | . . . . . Average Corruption . | . . . . . Corruption Purged . | . . . . . Overload Shots . | . . . . . Overflow Damage 38 | . 18 20 . . Projectiles . | . . . . . Explosions 38 | . 18 20 . . Melee . | . . . . . Knockbacks . | . . . . . Impact . | . . . . . Kinetic . | . . . . . Secondary . | . . . . . Self-Inflicted Damage 66 | . 10 56 . . Shots 3 | . 1 2 . . Rammed 2 | . . 2 . . Targets Rammed 2 | . . 2 . . Kicked . | . . . . . Crushed . | . . . . . Highest Temperature 106 | 46 21 106 . . Average Temperature 33 | 26 11 54 . . Received Heat Transfer 846 | 12 207 231 45 351 Siege Activations . | . . . . . Robots Corrupted . | . . . . . Combat Hostiles . | . . . . . Parts Fried . | . . . . . Impact Corruptions . | . . . . . Robots Melted . | . . . . . Combat Hostiles . | . . . . . Parts Melted . | . . . . . Heat Transferred 124 | . 50 74 . . Parts Sabotaged . | . . . . . Parts Stolen . | . . . . . Parts Stripped . | . . . . . Power Chain Reactions 1 | . 1 . . . Missiles Intercepted . | . . . . . Alert | -11 -10 -9 -8 -8 ------- Run | Scr Mat Mat Mat Sto Peak Influence 188 | 35 152 188 92 59 Average Influence 72 | 4 119 88 29 26 Maximum Alert Level . | . . . . . Low Security (%) 100 | 100 100 100 100 100 Level 1 . | . . . . . Level 2 . | . . . . . Level 3 . | . . . . . Level 4 . | . . . . . Level 5 . | . . . . . High Security . | . . . . . Max Security . | . . . . . Squads Dispatched 10 | . 3 2 1 4 Investigation 3 | . 1 . 1 1 Extermination . | . . . . . Reinforcement 7 | . 2 2 . 3 Assault . | . . . . . Garrison . | . . . . . Intercept . | . . . . . Construction Impeded . | . . . . . Haulers Reinforced . | . . . . . Stealth | -11 -10 -9 -8 -8 --------- Run | Scr Mat Mat Mat Sto Distress Signals 4 | . . . . 4 Communications Jammed . | . . . . . Distress Signals . | . . . . . Times Spotted 66 | 1 11 16 15 23 Peak Tracking Total 14 | 1 6 7 12 14 Tactical Retreats 7 | . 1 3 1 2 Traps | -11 -10 -9 -8 -8 ------- Run | Scr Mat Mat Mat Sto Traps Triggered 3 | . 2 1 . . Indirectly . | . . . . . Trap Hack Attempts . | . . . . . Triggered . | . . . . . Disarmed . | . . . . . Reprogrammed . | . . . . . Reused . | . . . . . Traps Extracted . | . . . . . Installed . | . . . . . Triggered . | . . . . . Machines | -11 -10 -9 -8 -8 ---------- Run | Scr Mat Mat Mat Sto Machines Disabled . | . . . . . Max in Single Turn . | . . . . . Machines Sabotaged . | . . . . . Garrisons Compromised . | . . . . . Overloaded Fab Kills . | . . . . . Fab Network Shutdowns . | . . . . . Hacking | -11 -10 -9 -8 -8 --------- Run | Scr Mat Mat Mat Sto Machines Accessed 7 | . 2 1 2 2 Terminals 6 | . 1 1 2 2 Fabricators . | . . . . . Repair Stations . | . . . . . Recycling Units 1 | . 1 . . . Scanalyzers . | . . . . . Garrison Access . | . . . . . Total Hacks 21 | . 5 3 7 6 Successful 9 | . 3 . 3 3 Failed 12 | . 2 3 4 3 Catastrophic 3 | . . . 2 1 Database Lockouts . | . . . . . Manual 10 | . 2 . 3 5 Terminals 19 | . 3 3 7 6 Fabricators . | . . . . . Repair Stations . | . . . . . Recycling Units 2 | . 2 . . . Scanalyzers . | . . . . . Garrison Access . | . . . . . Terminal Hacks 8 | . 2 . 3 3 Record 1 | . . . 1 . Prototype ID Bank 2 | . 1 . 1 . Open Door 1 | . . . . 1 Emergency Access Points 2 | . . . 1 1 Alert Level 1 | . 1 . . . Unreport Threat 1 | . . . . 1 Fabricator Hacks . | . . . . . Repair Station Hacks . | . . . . . Recycling Unit Hacks 1 | . 1 . . . Report Inventory 1 | . 1 . . . Scanalyzer . | . . . . . Garrison Access Hacks . | . . . . . Unauthorized Hacks . | . . . . . Terminals . | . . . . . Fabricators . | . . . . . Repair Stations . | . . . . . Recycling Units . | . . . . . Scanalyzers . | . . . . . Garrison Access . | . . . . . Data Cores Recovered . | . . . . . Used . | . . . . . Hacking Detections 7 | . 2 1 2 2 Full Trace Events 2 | . . . 1 1 Feedback Events . | . . . . . Feedback Blocked . | . . . . . Robot Schematics Acquired . | . . . . . Robots Built . | . . . . . Matter . | . . . . . Time . | . . . . . Total Robot Build Rating . | . . . . . Part Schematics Acquired . | . . . . . Parts Built . | . . . . . Matter . | . . . . . Time . | . . . . . Total Part Build Rating . | . . . . . Parts Repaired . | . . . . . Time . | . . . . . Parts Recycled . | . . . . . Recycled Matter . | . . . . . Retrieved Matter . | . . . . . Retrieved Components . | . . . . . Parts Scanalyzed . | . . . . . Part Schematics Acquired . | . . . . . Parts Damaged . | . . . . . Bothacking | -11 -10 -9 -8 -8 ------------ Run | Scr Mat Mat Mat Sto Used RIF Installer . | . . . . . Robots Hacked . | . . . . . Non-combat . | . . . . . Combat . | . . . . . Robot Hacks Applied . | . . . . . Relay Couplers Released . | . . . . . Robots Rewired . | . . . . . Allies Hacked . | . . . . . Hacks Repelled . | . . . . . Allies | -11 -10 -9 -8 -8 -------- Run | Scr Mat Mat Mat Sto Total Allies . | . . . . . Largest Group . | . . . . . Highest-Rated Group . | . . . . . Highest-Rated Ally . | . . . . . Total Orders . | . . . . . Ally Attacks . | . . . . . Total Damage . | . . . . . Kills . | . . . . . Allies Corrupted . | . . . . . Allies Melted . | . . . . . Intel | -11 -10 -9 -8 -8 ------- Run | Scr Mat Mat Mat Sto Robot Analysis Total . | . . . . . Derelict Logs Recovered . | . . . . . Drone Launches 12 | . . . . 12 Drone Recoveries . | . . . . . Exploration | -11 -10 -9 -8 -8 ------------- Run | Scr Mat Mat Mat Sto Turns Passed 1194 | 88 306 445 87 268 Spaces Moved 953 | 65 183 385 128 192 Core 123 | 15 . . . 108 Treads . | . . . . . Legs 243 | 50 183 10 . . Wheels . | . . . . . Hover . | . . . . . Flight 587 | . . 375 128 84 Fastest Speed 34 | 50 120 37 34 40 Average Speed 98 | 103 120 92 38 125 Slowest Speed 400 | 120 120 280 40 400 Overloaded Moves . | . . . . . Propulsion Burnouts . | . . . . . Robots Hopped 5 | . . 4 1 . Cave-ins Triggered . | . . . . . Exploration Rate (%) 28 | 5 34 33 16 56 Regions Visited 4 Branch Regions 1 Pre-discovered Areas . | . . . . . Known Exits Taken . | . . . . . Unknown Exits Taken 4 | 1 1 1 1 . Scrap Searched . | . . . . . Spaces Dug . | . . . . . Terrain Destroyed 27 | . 3 24 . . Melee . | . . . . . Projectile . | . . . . . AOE 27 | . 3 24 . . Actions | -11 -10 -9 -8 -8 --------- Run | Scr Mat Mat Mat Sto Total 1170 | 82 246 464 159 219 Wait 129 | . 31 60 23 15 Move 939 | 64 182 376 125 192 Hop 5 | . . 4 1 . Pick Up 35 | 9 9 9 2 6 Fast Attach . | . . . . . Attach 31 | 6 8 7 4 6 Detach . | . . . . . Swap . | . . . . . Drop 7 | 1 2 4 . . Fire 22 | 2 14 2 4 . Melee . | . . . . . Ram 2 | . . 2 . . Kick . | . . . . . Crush . | . . . . . Escape Stasis . | . . . . . Rewire . | . . . . . Trap . | . . . . . Miscellaneous . | . . . . . Route ------- -11/Scrapyard -10/Materials (discovered 2 exits: *Mat / [*Min]) -9/Materials -8/Materials (discovered 2 exits: *Sto x2) -8/Storage (discovered 1 exit: [*Fac]) History --------- Turn | Location | Event 2 | -11/Scrapyard | Met Revision 17 68 | -11/Scrapyard | Discovered new exit (range 8) 89 | -11/Scrapyard | Entered Materials 119 | -10/Materials | Discovered new exit (range 10) 301 | -10/Materials | Build established: Mutant 305 | -10/Materials | Discovered new exit (range 4) 395 | -10/Materials | Entered another Materials area 395 | -9/Materials | Evolved 2 slots: Propulsion x1, Utility x1 733 | -9/Materials | Lost 4 parts (2n1u1w) 801 | -9/Materials | Lost 3 parts (1p1u1w) 806 | -9/Materials | Core integrity fell below 50% 836 | -9/Materials | Discovered new exit (range 3) 840 | -9/Materials | Entered another Materials area 840 | -8/Materials | Evolved 2 slots: Power x1, Utility x1 840 | -8/Materials | Discovered new exit (range 8) 896 | -8/Materials | Discovered new exit (range 11) 927 | -8/Materials | Entered Storage 950 | -8/Storage | Lost 6 parts (3n1u2w) 1148 | -8/Storage | Lost 4 parts (1n3u) 1169 | -8/Storage | Core integrity fell below 50% 1177 | -8/Storage | Core integrity fell below 20% 1193 | -8/Storage | Discovered new exit (range 16) 1195 | -8/Storage | Destroyed by S-10 Pest with Light Assault Rifle Last Messages --------------- 01171_ Acquired 8 matter. 01171_ K-01 Serf collects debris. 01173_ Slug penetrates Wall. 01173_ K-01 Serf collects debris. 01174_ K-01 Serf destroyed. 01174_ K-01 Serf collects debris. 01174_ R-06 Scavenger collects Lgt. Ion Engine. 01175_ K-01 Serf collects debris. 01176_ Penetrated by Slug. 01179_ Slug penetrates Wall. 01184_ Slug penetrates Terminal. 01184_ Terminal disabled. 01189_ Connecting with Terminal... [Achievement: Everything Is Under Control] >>Alert(Purge) Purged threat record, alert level lowered. 01189_ ALERT: Suspicious activity at Terminal S013. Dispatching Investigation squad. 01193_ EXIT=FOUND [Achievement: First Step to Greatness] Map ----- +----------------------------------------------------+ | | | | | | | | | | | | | ????????????????????????????????????? | | ????????????????????????????????????? | | ????????????????????????????????????? | | ????????????????????????????????????? | | ???????????????????????###??????????? | | ??????????????????????# ??????????? | | ??????????????????????# < ??????????? | | ??????????????????????# ??????????? | | ??????????????????????# ??????????? | | ??????????????????????# ??????????? | | ??????????????????????+ ??????????? | | ??????????????????????# #?????????? | | ??????????????????????# #?????????? | | ??????????????????????# #?????????? | | ??????????????????????# #?????????? | | ??????????????????????#k #??#######? | | ??????????????????????# #? #? | | ??????????????????????# #? "" #? | | ??????????????????????# # Y" #? | | ??????????????????????# @# "" #? | | ??????????????????????+ + #? | | ??????????????????????# #""" #? | | ??????????????????????# #""" #? | | ??????????????????????# #?"" #? | | ??????????????????????# #? ? | | ??????????????????????# #??####???? | | ??????????????????????# #?????????? | | ??????????????????????# #?????????? | | ?????????????????????## #?????????? | | ?????????????######## # #?????????? | | ########????? # ##????????? | | % #????# # T#????????? | | """""" #????# # ##????????? | | "????" #????# # #?????????? | | "????" #????# """ """ # #?????????? | | """""" #????# """ """ # #?????????? | | #????# """ """ # #?????????? | | #????# # #?????????? | | % #????####+###### #?????????? | | ##+########### #### ##### #???? | | %%% #???? | | =% % #???? | | =% % #???? | | #########+#### #### #???? | +----------------------------------------------------+ Best States ------------- Heat Dissipation 38 Energy Generation 10 Energy Capacity 250 Matter Stores 300 Matter Capacity 300 Sight Range 16 Robot Scan Range 13 Terrain Scan Density 10 ECM Strength 1 Armor Coverage 150 Evasion (%) 62 Melee Accuracy 5 Item Schematics ----------------- None Robot Schematics ------------------ None Fabricated ------------ Nothing Alien Tech Used ----------------- None Achievements -------------- Crack Shot Everything Is Under Control First Step to Greatness One Hack Too Far Release The Drones! Uninvited Guest Challenges ------------ None Game ------ Seed AdvancedRegenerativeTrap Manual? 0 Play Time 00:43:04 Cumulative 1.3 hours Start 2020.01.03 @ 01:30:00 End 2020.01.03 @ 02:13:08 Sessions 1 Manual Loads 0 Difficulty Rogue Special Mode None Game No. 1 Rogue 1 Adventurer 0 Explorer 0 Win Type - Total 0 Types 0/0/0/0/0/0/0 Lore% 0 Gallery% 1 Achievement% 2 Wizard Run 0 Options --------- ASCII 0 Keyboard 0 Movement Numpad Keybinds 0 Fullscreen 1 Font 18/SmallcapsGlow Map View 76x50 Tactical HUD 1 Map Filters NONE Filters NONE Steam 1 RUN: 666cc943-5e12-4fbe-9110-0b3c1be5f9fc